fUST/lending_fUST_20250901
["ID","MTS","AMOUNT","RATE_DAILY","PERIOD"]
[382645093,1756692646970,-2110.57,0.00016438,2]
[382645094,1756692646980,-2110.57,0.00016438,2]
[382645095,1756692646990,-2110.57,0.00016438,2]
[382645096,1756692647000,-2110.57,0.00016438,2]
[382645097,1756692647010,-2110.57,0.00016438,2]
[382645098,1756692647020,-2110.57,0.00016438,2]
[382645099,1756692647029,-2110.57,0.00016438,2]
[382645100,1756692647039,-2110.57,0.00016438,2]
[382645101,1756692647049,-2110.57,0.00016438,2]
[382645102,1756692647058,-2110.80286606,0.00016438,2]
[382645103,1756692647068,-1000.0,0.000165,2]
[382645104,1756692647078,-151.0,0.000165,2]
[382645105,1756692647088,-402.83718299,0.00016555,2]
[382645106,1756692647098,-500.0,0.00016573,2]
[382645107,1756692647108,-500.0,0.00016573,2]
[382645108,1756692647117,-500.0,0.00016573,2]
[382645109,1756692647127,-500.0,0.00016573,2]
[382645110,1756692647137,-300.43414694,0.00016573,2]
[382645111,1756692647147,-500.0,0.00016573,2]
[382645112,1756692647156,-500.0,0.00016573,2]
[382645113,1756692647166,-500.0,0.00016573,2]
[382645114,1756692647175,-500.0,0.00016573,2]
[382645115,1756692647184,-500.40338952,0.00016573,2]
[382645116,1756692647193,-500.0,0.00016573,2]
[382645117,1756692647202,-500.0,0.00016573,2]
[382645118,1756692647211,-500.73443357,0.00016573,2]
[382645119,1756692647221,-500.0,0.00016573,2]
[382645120,1756692647230,-500.0,0.00016573,2]
[382645121,1756692647298,-500.47404281,0.00016573,2]
[382645122,1756692647308,-500.79197939,0.00016573,2]
[382645123,1756692647319,-500.0,0.00016573,2]
[382645124,1756692647328,-500.0,0.00016573,2]
[382645125,1756692647337,-500.0,0.00016573,2]
[382645126,1756692647346,-501.40795839,0.00016573,2]
[382645127,1756692647355,-500.0,0.00016573,2]
[382645128,1756692647364,-500.0,0.00016573,2]
[382645129,1756692647375,-500.0,0.00016573,2]
[382645130,1756692647386,-500.0,0.00016573,2]
[382645131,1756692647395,-500.0,0.00016573,2]
[382645132,1756692647404,-502.36207162,0.00016573,2]
[382645133,1756692647414,-500.0,0.00016573,2]
[382645134,1756692647423,-500.74315715,0.00016573,2]
[382645135,1756692647432,-500.0,0.00016573,2]
[382645136,1756692647442,-500.0,0.00016573,2]
[382645137,1756692647452,-500.0,0.00016573,2]
[382645138,1756692647461,-500.0,0.00016573,2]
[382645139,1756692647471,-480.0,0.00016582,2]
[382645140,1756692647480,-480.0,0.00016582,2]
[382645141,1756692647489,-982.93,0.00016582,2]
[382645142,1756692647499,-480.0,0.00016582,2]
[382645143,1756692647508,-480.0,0.00016582,2]
[382645144,1756692647518,-509.26,0.00016582,2]
[382645145,1756692647527,-480.0,0.00016583,2]
[382645146,1756692647536,-781.43,0.00016583,2]
[382645147,1756692647546,-308.07723876,0.00016583,2]
[382645148,1756692647555,-613.63222339,0.00016583,2]
[382645149,1756692647565,-480.0,0.00016583,2]
[382645150,1756692647574,-480.0,0.00016583,2]
[382645151,1756692647583,-480.0,0.00016583,2]
[382645152,1756692647592,-213.21681394,0.00016583,2]
[382645153,1756692647601,-480.0,0.00016583,2]
[382645154,1756692647611,-990.93,0.00016583,2]
[382645155,1756692647620,-480.0,0.00016583,2]
[382645156,1756692647630,-480.0,0.00016583,2]
[382645157,1756692647642,-480.0,0.00016583,2]
[382645158,1756692647651,-480.0,0.00016583,2]
[382645159,1756692647660,-745.29,0.00016583,2]
[382645160,1756692647670,-561.58,0.00016583,2]
[382645161,1756692647679,-480.0,0.00016583,2]
[382645162,1756692647688,-480.0,0.00016583,2]
[382645163,1756692647697,-599.36,0.00016583,2]
[382645164,1756692647707,-511.58,0.00016583,2]
[382645165,1756692647716,-1064.73,0.00016583,2]
[382645166,1756692647725,-610.31,0.00016583,2]
[382645167,1756692647734,-678.07,0.00016583,2]
[382645168,1756692647743,-471.40083625,0.00016583,2]
[382645169,1756692647752,-480.0,0.00016583,2]
[382645170,1756692647761,-480.0,0.00016583,2]
[382645171,1756692647771,-480.0,0.00016583,2]
[382645172,1756692647780,-480.0,0.00016583,2]
[382645173,1756692647789,-480.0,0.00016583,2]
[382645174,1756692647798,-517.95,0.00016583,2]
[382645175,1756692647807,-693.23,0.00016583,2]
[382645176,1756692647818,-480.0,0.00016583,2]
[382645177,1756692647828,-480.0,0.00016583,2]
[382645178,1756692647837,-1012.73,0.00016583,2]
[382645179,1756692647847,-1047.43,0.00016583,2]
[382645180,1756692647856,-480.0,0.00016583,2]
[382645181,1756692647866,-480.0,0.00016583,2]
[382645182,1756692647876,-480.0,0.00016583,2]
[382645183,1756692647886,-480.0,0.00016583,2]
[382645184,1756692647896,-480.0,0.00016583,2]
[382645185,1756692647905,-849.1,0.00016583,2]
[382645186,1756692647915,-767.51,0.00016583,2]
[382645187,1756692647925,-570.9,0.00016583,2]
[382645188,1756692647935,-1000.36,0.00016583,2]
[382645189,1756692647944,-1131.33,0.00016583,2]
[382645190,1756692647953,-672.3,0.00016583,2]
[382645191,1756692647963,-480.0,0.00016583,2]
[382645192,1756692647973,-480.0,0.00016583,2]
[382645193,1756692647982,-480.0,0.00016583,2]
[382645194,1756692647991,-480.0,0.00016583,2]
[382645195,1756692648003,-870.18,0.00016583,2]
[382645196,1756692648014,-151.0,0.00016583,2]
[382645197,1756692648023,-151.0,0.00016583,2]
[382645198,1756692648032,-480.0,0.00016583,2]
[382645199,1756692648042,-538.88,0.00016583,2]
[382645200,1756692648052,-506.62,0.00016583,2]
[382645201,1756692648062,-151.0,0.00016583,2]
[382645202,1756692648072,-716.35,0.00016583,2]
[382645203,1756692648082,-2299.19,0.00016583,2]
[382645204,1756692648093,-567.52,0.00016583,2]
[382645205,1756692648103,-480.0,0.00016583,2]
[382645206,1756692648114,-213.91847732,0.00016583,2]
[382645207,1756692648123,-591.02,0.00016583,2]
[382645208,1756692648134,-151.634699,0.00016583,2]
[382645209,1756692648144,-480.0,0.00016583,2]
[382645210,1756692648154,-739.88,0.00016583,2]
[382645211,1756692648164,-480.0,0.00016583,2]
[382645212,1756692648174,-2382.04,0.00016583,2]
[382645213,1756692648183,-155.797552,0.00016583,2]
[382645214,1756692648193,-480.0,0.00016583,2]
[382645215,1756692648203,-480.0,0.00016583,2]
[382645216,1756692648213,-716.57,0.00016583,2]
[382645217,1756692648223,-1378.16,0.00016583,2]
[382645218,1756692648232,-480.0,0.00016583,2]
[382645219,1756692648242,-794.42,0.00016583,2]
[382645220,1756692648251,-2025.92,0.00016583,2]
[382645221,1756692648261,-480.0,0.00016583,2]
[382645222,1756692648270,-482.49579189,0.00016583,2]
[382645223,1756692648280,-480.0,0.00016583,2]
[382645224,1756692648289,-160.604832,0.00016583,2]
[382645225,1756692648299,-160.604832,0.00016583,2]
[382645226,1756692648309,-480.0,0.00016583,2]
[382645227,1756692648319,-160.604832,0.00016583,2]
[382645228,1756692648328,-480.0,0.00016583,2]
[382645229,1756692648338,-160.604832,0.00016583,2]
[382645230,1756692648348,-480.0,0.00016583,2]
[382645231,1756692648358,-480.0,0.00016583,2]
[382645232,1756692648367,-151.0,0.00016583,2]
[382645233,1756692648376,-151.0,0.00016583,2]
[382645234,1756692648386,-151.0,0.00016583,2]
[382645235,1756692648395,-151.0,0.00016583,2]
[382645236,1756692648405,-480.0,0.00016583,2]
[382645237,1756692648414,-282.23432,0.00016583,2]
[382645238,1756692648424,-880.13,0.00016583,2]
[382645239,1756692648434,-480.0,0.00016583,2]
[382645240,1756692648443,-805.44,0.00016583,2]
[382645241,1756692648453,-528.9,0.00016583,2]
[382645242,1756692648463,-1031.03,0.00016583,2]
[382645243,1756692648473,-480.0,0.00016583,2]
[382645244,1756692648483,-480.0,0.00016583,2]
[382645245,1756692648493,-480.0,0.00016583,2]
[382645246,1756692648502,-480.0,0.00016583,2]
[382645247,1756692648512,-711.49,0.00016583,2]
[382645248,1756692648522,-482.62361852,0.00016583,2]
[382645249,1756692648531,-480.0,0.00016583,2]
[382645250,1756692648541,-480.0,0.00016583,2]
[382645251,1756692648550,-151.0,0.00016583,2]
[382645252,1756692648560,-480.0,0.00016583,2]
[382645253,1756692648570,-151.0,0.00016583,2]
[382645254,1756692648580,-480.0,0.00016583,2]
[382645255,1756692648591,-1005.3,0.00016583,2]
[382645256,1756692648600,-609.27,0.00016583,2]
[382645257,1756692648610,-151.0,0.00016583,2]
[382645258,1756692648620,-480.0,0.00016583,2]
[382645259,1756692648631,-480.0,0.00016583,2]
[382645260,1756692648641,-615.16,0.00016583,2]
[382645261,1756692648651,-151.0,0.00016583,2]
[382645262,1756692648661,-151.0,0.00016583,2]
[382645263,1756692648672,-151.0,0.00016583,2]
[382645264,1756692648682,-151.0,0.00016583,2]
[382645265,1756692648692,-151.0,0.00016583,2]
[382645266,1756692648701,-919.55,0.00016583,2]
[382645267,1756692648711,-220.448831,0.00016583,2]
[382645268,1756692648721,-151.0,0.00016583,2]
[382645269,1756692648730,-267.383796,0.00016583,2]
[382645270,1756692648740,-552.38,0.00016584,2]
[382645271,1756692648750,-1211.96,0.00016584,2]
[382645272,1756692648759,-151.0,0.00016584,2]
[382645273,1756692648769,-152.088366,0.00016584,2]
[382645274,1756692648779,-152.927153,0.00016584,2]
[382645275,1756692648790,-1477.91,0.00016584,2]
[382645276,1756692648799,-151.0,0.00016584,2]
[382645277,1756692648809,-169.731101,0.00016584,2]
[382645278,1756692648819,-151.0,0.00016584,2]
[382645279,1756692648829,-151.0,0.00016584,2]
[382645280,1756692648839,-151.0,0.00016584,2]
[382645281,1756692648848,-151.0,0.00016584,2]
[382645282,1756692648858,-151.0,0.00016584,2]
[382645283,1756692648868,-151.0,0.00016584,2]
[382645284,1756692648877,-151.0,0.00016584,2]
[382645285,1756692648888,-278.677164,0.00016584,2]
[382645286,1756692648897,-480.0,0.00016584,2]
[382645287,1756692648907,-278.677164,0.00016584,2]
[382645288,1756692648921,-1853.34,0.00016584,2]
[382645289,1756692648931,-278.677164,0.00016584,2]
[382645290,1756692648941,-278.677164,0.00016584,2]
[382645291,1756692648950,-962.5,0.00016584,2]
[382645292,1756692648960,-151.0,0.00016584,2]
[382645293,1756692648969,-288.547419,0.00016584,2]
[382645294,1756692648979,-151.0,0.00016584,2]
[382645295,1756692648988,-618.13,0.00016584,2]
[382645296,1756692649001,-1180.26,0.00016584,2]
[382645297,1756692649011,-500.0,0.00016585,2]
[382645298,1756692649022,-480.0,0.00016585,2]
[382645299,1756692649032,-823.81,0.00016585,2]
[382645300,1756692649042,-505.55,0.00016585,2]
[382645301,1756692649051,-480.0,0.00016585,2]
[382645302,1756692649061,-804.41,0.00016585,2]
[382645303,1756692649071,-514.74,0.00016585,2]
[382645304,1756692649081,-480.0,0.00016585,2]
[382645305,1756692649091,-310.72329907,0.00016585,2]
[382645306,1756692649101,-480.0,0.00016585,2]
[382645307,1756692649111,-480.0,0.00016585,2]
[382645308,1756692649121,-1066.83,0.00016585,2]
[382645309,1756692649131,-1056.87,0.00016585,2]
[382645310,1756692649141,-480.0,0.00016585,2]
[382645311,1756692649151,-480.0,0.00016585,2]
[382645312,1756692649161,-480.0,0.00016585,2]
[382645313,1756692649170,-480.0,0.00016585,2]
[382645314,1756692649181,-942.58,0.00016585,2]
[382645315,1756692649191,-1024.49,0.00016585,2]
[382645316,1756692649201,-480.0,0.00016585,2]
[382645317,1756692649212,-944.92,0.00016585,2]
[382645318,1756692649223,-480.0,0.00016585,2]
[382645319,1756692649233,-480.0,0.00016585,2]
[382645320,1756692649243,-491.06,0.00016585,2]
[382645321,1756692649253,-480.0,0.00016585,2]
[382645322,1756692649262,-501.2,0.00016585,2]
[382645323,1756692649272,-933.74,0.00016585,2]
[382645324,1756692649282,-945.42,0.00016585,2]
[382645325,1756692649291,-480.0,0.00016585,2]
[382645326,1756692649301,-979.9,0.00016585,2]
[382645327,1756692649310,-480.0,0.00016585,2]
[382645328,1756692649320,-480.0,0.00016585,2]
[382645329,1756692649331,-1150.39,0.00016585,2]
[382645330,1756692649341,-902.27,0.00016585,2]
[382645331,1756692649351,-152.11578,0.00016585,2]
[382645332,1756692649360,-804.22,0.00016585,2]
[382645333,1756692649370,-1212.68,0.00016585,2]
[382645334,1756692649379,-151.221061,0.00016585,2]
[382645335,1756692649390,-480.0,0.00016585,2]
[382645336,1756692649399,-151.0,0.00016585,2]
[382645337,1756692649410,-165.165242,0.00016585,2]
[382645338,1756692649419,-480.0,0.00016585,2]
[382645339,1756692649429,-480.0,0.00016585,2]
[382645340,1756692649439,-1815.61,0.00016585,2]
[382645341,1756692649448,-1076.63,0.00016585,2]
[382645342,1756692649458,-612.97,0.00016585,2]
[382645343,1756692649467,-480.0,0.00016585,2]
[382645344,1756692649477,-1268.48,0.00016585,2]
[382645345,1756692649487,-690.34,0.00016585,2]
[382645346,1756692649497,-518.8,0.00016585,2]
[382645347,1756692649506,-480.0,0.00016585,2]
[382645348,1756692649516,-480.0,0.00016586,2]
[382645349,1756692649526,-679.89,0.00016586,2]
[382645350,1756692649545,-480.0,0.00016586,2]
[382645351,1756692649556,-480.0,0.00016586,2]
[382645352,1756692649568,-480.0,0.00016586,2]
[382645353,1756692649577,-480.0,0.00016586,2]
[382645354,1756692649587,-480.0,0.00016586,2]
[382645355,1756692649597,-480.0,0.00016586,2]
[382645356,1756692649607,-480.0,0.00016586,2]
[382645357,1756692649616,-709.23,0.00016586,2]
[382645358,1756692649626,-735.72,0.00016586,2]
[382645359,1756692649638,-480.0,0.00016586,2]
[382645360,1756692649649,-1016.26,0.00016586,2]
[382645361,1756692649659,-480.0,0.00016586,2]
[382645362,1756692649672,-480.0,0.00016586,2]
[382645363,1756692649682,-507.38,0.00016586,2]
[382645364,1756692649692,-480.0,0.00016586,2]
[382645365,1756692649702,-480.0,0.00016586,2]
[382645366,1756692649712,-480.0,0.00016586,2]
[382645367,1756692649723,-480.0,0.00016586,2]
[382645368,1756692649732,-480.0,0.00016586,2]
[382645369,1756692649743,-480.0,0.00016586,2]
[382645370,1756692649753,-1039.37,0.00016586,2]
[382645371,1756692649763,-480.0,0.00016586,2]
[382645372,1756692649772,-480.0,0.00016586,2]
[382645373,1756692649782,-984.8,0.00016586,2]
[382645374,1756692649791,-480.0,0.00016586,2]
[382645375,1756692649801,-480.0,0.00016586,2]
[382645376,1756692649811,-480.0,0.00016586,2]
[382645377,1756692649822,-642.31,0.00016586,2]
[382645378,1756692649831,-480.0,0.00016586,2]
[382645379,1756692649841,-506.01,0.00016586,2]
[382645380,1756692649851,-480.0,0.00016586,2]
[382645381,1756692649861,-512.92,0.00016586,2]
[382645382,1756692649871,-480.0,0.00016586,2]
[382645383,1756692649881,-606.66,0.00016586,2]
[382645384,1756692649893,-480.0,0.00016586,2]
[382645385,1756692649903,-480.0,0.00016586,2]
[382645386,1756692649913,-480.0,0.00016586,2]
[382645387,1756692649925,-305.10314767,0.00016586,2]
[382645388,1756692649935,-480.0,0.00016586,2]
[382645389,1756692649945,-480.0,0.00016586,2]
[382645390,1756692649955,-1049.89,0.00016586,2]
[382645391,1756692649964,-480.0,0.00016586,2]
[382645392,1756692649975,-480.0,0.00016586,2]
[382645393,1756692649985,-153.096732,0.00016586,2]
[382645394,1756692649995,-480.0,0.00016586,2]
[382645395,1756692650005,-156.210329,0.00016586,2]
[382645396,1756692650016,-480.0,0.00016586,2]
[382645397,1756692650025,-151.0,0.00016586,2]
[382645398,1756692650035,-480.0,0.00016586,2]
[382645399,1756692650044,-480.0,0.00016586,2]
[382645400,1756692650055,-483.61624202,0.00016586,2]
[382645401,1756692650064,-480.0,0.00016586,2]
[382645402,1756692650074,-480.0,0.00016586,2]
[382645403,1756692650083,-480.0,0.00016586,2]
[382645404,1756692650094,-501.97,0.00016586,2]
[382645405,1756692650104,-982.0,0.00016586,2]
[382645406,1756692650113,-942.76,0.00016586,2]
[382645407,1756692650123,-480.0,0.00016586,2]
[382645408,1756692650133,-480.0,0.00016586,2]
[382645409,1756692650143,-1009.57,0.00016586,2]
[382645410,1756692650153,-480.0,0.00016586,2]
[382645411,1756692650163,-548.15,0.00016586,2]
[382645412,1756692650172,-480.0,0.00016586,2]
[382645413,1756692650182,-480.0,0.00016586,2]
[382645414,1756692650192,-480.0,0.00016586,2]
[382645415,1756692650202,-480.0,0.00016586,2]
[382645416,1756692650212,-480.0,0.00016586,2]
[382645417,1756692650222,-480.0,0.00016586,2]
[382645418,1756692650232,-480.0,0.00016586,2]
[382645419,1756692650242,-480.0,0.00016586,2]
[382645420,1756692650252,-617.3,0.00016586,2]
[382645421,1756692650261,-541.4,0.00016586,2]
[382645422,1756692650271,-591.96021485,0.00016586,2]
[382645423,1756692650281,-480.0,0.00016586,2]
[382645424,1756692650290,-480.0,0.00016586,2]
[382645425,1756692650300,-480.0,0.00016586,2]
[382645426,1756692650310,-480.0,0.00016586,2]
[382645427,1756692650319,-480.0,0.00016586,2]
[382645428,1756692650330,-480.0,0.00016586,2]
[382645429,1756692650340,-480.0,0.00016586,2]
[382645430,1756692650349,-370.47807398,0.00016586,2]
[382645431,1756692650359,-480.0,0.00016586,2]
[382645432,1756692650369,-480.0,0.00016586,2]
[382645433,1756692650380,-480.0,0.00016586,2]
[382645434,1756692650389,-480.0,0.00016586,2]
[382645435,1756692650399,-480.0,0.00016586,2]
[382645436,1756692650409,-543.51,0.00016586,2]
[382645437,1756692650419,-480.0,0.00016586,2]
[382645438,1756692650430,-480.0,0.00016586,2]
[382645439,1756692650440,-480.0,0.00016586,2]
[382645440,1756692650449,-809.86,0.00016587,2]
[382645441,1756692650459,-480.0,0.00016587,2]
[382645442,1756692650469,-480.0,0.00016587,2]
[382645443,1756692650479,-318.72120526,0.00016587,2]
[382645444,1756692650489,-480.0,0.00016587,2]
[382645445,1756692650499,-3859.91,0.00016588,2]
[382645446,1756692650509,-657.21,0.00016588,2]
[382645447,1756692650519,-1450.19,0.00016588,2]
[382645448,1756692650529,-480.0,0.00016588,2]
[382645449,1756692650539,-821.61,0.00016588,2]
[382645450,1756692650548,-5365.63,0.00016588,2]
[382645451,1756692650558,-1282.19,0.00016588,2]
[382645452,1756692650567,-5001.93,0.00016588,2]
[382645453,1756692650577,-1135.74,0.00016588,2]
[382645454,1756692650587,-5378.7,0.00016588,2]
[382645455,1756692650596,-3345.41,0.00016588,2]
[382645456,1756692650606,-972.38,0.00016589,2]
[382645457,1756692650616,-776.14,0.00016589,2]
[382645458,1756692650626,-583.77,0.00016589,2]
[382645459,1756692650636,-153.474515,0.00016589,2]
[382645460,1756692650645,-428.62476643,0.00016589,2]
[382645461,1756692650655,-153.44143,0.00016589,2]
[382645462,1756692650666,-480.0,0.00016589,2]
[382645463,1756692650675,-999.25,0.00016589,2]
[382645464,1756692650685,-154.304176,0.00016589,2]
[382645465,1756692650695,-480.0,0.00016589,2]
[382645466,1756692650705,-860.73,0.00016589,2]
[382645467,1756692650714,-480.0,0.00016589,2]
[382645468,1756692650724,-480.0,0.00016589,2]
[382645469,1756692650734,-622.46,0.00016589,2]
[382645470,1756692650744,-231.66720936,0.00016589,2]
[382645471,1756692650754,-480.0,0.00016589,2]
[382645472,1756692650764,-577.35,0.00016589,2]
[382645473,1756692650773,-480.0,0.00016589,2]
[382645474,1756692650783,-480.0,0.00016589,2]
[382645475,1756692650792,-480.0,0.00016589,2]
[382645476,1756692650802,-872.25,0.00016589,2]
[382645477,1756692650812,-480.0,0.00016589,2]
[382645478,1756692650821,-588.27,0.00016589,2]
[382645479,1756692650831,-480.0,0.00016589,2]
[382645480,1756692650841,-480.0,0.00016589,2]
[382645481,1756692650850,-544.28,0.00016589,2]
[382645482,1756692650860,-480.0,0.00016589,2]
[382645483,1756692650870,-480.0,0.00016589,2]
[382645484,1756692650880,-881.3,0.00016589,2]
[382645485,1756692650891,-480.0,0.00016589,2]
[382645486,1756692650901,-1570.06,0.00016589,2]
[382645487,1756692650911,-480.0,0.00016589,2]
[382645488,1756692650922,-754.55,0.00016589,2]
[382645489,1756692650933,-792.77,0.00016589,2]
[382645490,1756692650943,-480.0,0.00016589,2]
[382645491,1756692650953,-480.0,0.00016589,2]
[382645492,1756692650964,-480.0,0.00016589,2]
[382645493,1756692650974,-1062.36,0.00016589,2]
[382645494,1756692650984,-151.0,0.00016589,2]
[382645495,1756692650994,-184.213476,0.00016589,2]
[382645496,1756692651005,-151.0,0.00016589,2]
[382645497,1756692651014,-151.0,0.00016589,2]
[382645498,1756692651023,-151.0,0.00016589,2]
[382645499,1756692651033,-151.0,0.00016589,2]
[382645500,1756692651042,-267.383796,0.00016589,2]
[382645501,1756692651051,-480.0,0.00016592,2]
[382645502,1756692651060,-480.0,0.00016592,2]
[382645503,1756692651069,-480.0,0.00016592,2]
[382645504,1756692651078,-480.0,0.00016592,2]
[382645505,1756692651088,-480.0,0.00016592,2]
[382645506,1756692651097,-190.75886297,0.00016593,2]
[382645507,1756692651106,-480.0,0.00016593,2]
[382645508,1756692651115,-801.43,0.00016593,2]
[382645509,1756692651125,-480.0,0.00016593,2]
[382645510,1756692651134,-480.0,0.00016593,2]
[382645511,1756692651145,-500.0,0.00016593,2]
[382645512,1756692651155,-480.0,0.00016593,2]
[382645513,1756692651164,-495.14,0.00016593,2]
[382645514,1756692651173,-480.0,0.00016593,2]
[382645515,1756692651183,-367.29284119,0.00016593,2]
[382645516,1756692651194,-1467.70219338,0.00016593,2]
[382645517,1756692651204,-391.72905702,0.00016593,2]
[382645518,1756692651214,-574.88,0.00016593,2]
[382645519,1756692651380,-480.0,0.00016593,2]
[382645520,1756692651393,-830.69,0.00016593,2]
[382645521,1756692651403,-480.0,0.00016593,2]
[382645522,1756692651412,-480.0,0.00016593,2]
[382645523,1756692651421,-871.21,0.00016593,2]
[382645524,1756692651430,-480.0,0.00016593,2]
[382645525,1756692651441,-480.0,0.00016593,2]
[382645526,1756692651451,-480.0,0.00016593,2]
[382645527,1756692651462,-555.15,0.00016593,2]
[382645528,1756692651471,-151.0,0.00016593,2]
[382645529,1756692651480,-151.0,0.00016593,2]
[382645530,1756692651490,-151.0,0.00016593,2]
[382645531,1756692651499,-151.0,0.00016593,2]
[382645532,1756692651508,-151.0,0.00016593,2]
[382645533,1756692651518,-1140.65,0.00016593,2]
[382645534,1756692651527,-151.0,0.00016593,2]
[382645535,1756692651537,-151.0,0.00016593,2]
[382645536,1756692651546,-151.0,0.00016593,2]
[382645537,1756692651555,-251.111152,0.00016593,2]
[382645538,1756692651564,-151.0,0.00016593,2]
[382645539,1756692651574,-670.22,0.00016593,2]
[382645540,1756692651583,-480.0,0.00016593,2]
[382645541,1756692651593,-480.0,0.00016593,2]
[382645542,1756692651602,-480.0,0.00016593,2]
[382645543,1756692651611,-480.0,0.00016593,2]
[382645544,1756692651621,-289.3796986,0.00016593,2]
[382645545,1756692651630,-493.34,0.00016593,2]
[382645546,1756692651644,-480.0,0.00016593,2]
[382645547,1756692651653,-160.604832,0.00016593,2]
[382645548,1756692651662,-160.604832,0.00016593,2]
[382645549,1756692651672,-160.604832,0.00016593,2]
[382645550,1756692651681,-160.604832,0.00016593,2]
[382645551,1756692651690,-480.0,0.00016593,2]
[382645552,1756692651699,-151.731145,0.00016593,2]
[382645553,1756692651708,-153.355312,0.00016593,2]
[382645554,1756692651718,-151.0,0.00016593,2]
[382645555,1756692651728,-151.0,0.00016593,2]
[382645556,1756692651737,-151.0,0.00016593,2]
[382645557,1756692651746,-657.94,0.00016593,2]
[382645558,1756692651755,-151.0,0.00016593,2]
[382645559,1756692651764,-495.51,0.00016597,2]
[382645560,1756692651773,-486.89,0.00016597,2]
[382645561,1756692651783,-19865.2444966,0.00016597,2]
[382645562,1756692651792,-39730.4889929,0.00016597,2]
[382645563,1756692651802,-151.389909,0.00016597,2]
[382645564,1756692651812,-151.0,0.00016597,2]
[382645565,1756692651822,-151.0,0.00016597,2]
[382645566,1756692651832,-151.0,0.00016597,2]
[382645567,1756692651842,-1157.05746399,0.00016597,2]
[382645568,1756692651851,-151.0,0.00016597,2]
[382645569,1756692651861,-151.0,0.00016597,2]
[382645570,1756692651870,-153.354446,0.00016597,2]
[382645571,1756692651881,-151.0,0.00016597,2]
[382645572,1756692651893,-296.769354,0.00016597,2]
[382645573,1756692651902,-151.0,0.00016597,2]
[382645574,1756692651911,-224.043853,0.00016597,2]
[382645575,1756692651921,-183.492138,0.00016597,2]
[382645576,1756692651934,-151.0,0.00016597,2]
[382645577,1756692651943,-151.0,0.00016597,2]
[382645578,1756692651953,-151.0,0.00016597,2]
[382645579,1756692651962,-186.321703,0.00016597,2]
[382645580,1756692651973,-151.0,0.00016597,2]
[382645581,1756692651982,-155.679495,0.00016597,2]
[382645582,1756692651991,-151.0,0.00016597,2]
[382645583,1756692652001,-278.677164,0.00016597,2]
[382645584,1756692652011,-278.677164,0.00016597,2]
[382645585,1756692652020,-278.677164,0.00016597,2]
[382645586,1756692652029,-278.677164,0.00016597,2]
[382645587,1756692652038,-151.0,0.00016597,2]
[382645588,1756692652047,-151.0,0.00016597,2]
[382645589,1756692652057,-151.0,0.00016597,2]
[382645590,1756692652066,-151.0,0.00016597,2]
[382645591,1756692652076,-151.0,0.00016597,2]
[382645592,1756692652086,-151.0,0.000166,2]